Cogmind - Beta 11 @@@ ROGUE MODE // 2022.04.18 @ 13:34:34 Player: Momo Result: Destroyed by as-48754 with Assembled Rifle Performance ------------- Evolutions (1) 500 Regions Visited (3) 600 Robots Destroyed (4) 20 Value Destroyed (111) 111 Prototype IDs (0) 0 Alien Tech Used (0) 0 Bonus (0) 0 TOTAL SCORE: 1231 Bonus ------- None Cogmind --------- Core Integrity 0/400 Matter 237/300 Energy 99/100 System Corruption 0% Temperature Cool (0) Movement Core (50) Location -9/Mines Parts ------- > --- POWER (1) -------- (None) > --- PROPULSION (3) --- (None) > --- UTILITY (3) ------ (None) > --- WEAPON (2) ------- Mace > --- INVENTORY (5) ---- Compact Wheel Compact Wheel Medium Storage Unit High-capacity Storage Unit Structural Scanner Peak State ------------ > --- POWER ------------ Ion Engine > --- PROPULSION ------- Compact Wheel Compact Wheel > --- UTILITY ---------- Small Storage Unit > --- WEAPON ----------- Assault Rifle Assault Rifle > --- INVENTORY -------- (None) [Rating: 6] Favorites ----------- Power Ion Engine Engine Ion Engine Propulsion Flight Unit Wheel Compact Wheel Flight Unit Flight Unit Utility Small Storage Unit Storage Small Storage Unit Weapon Assault Rifle Ballistic Gun Assault Rifle Launcher Rocket Launcher Impact Weapon Mace Build | -11 -10 -9 -9 ------- Run | Scr Mat Mat Min Slots Evolved 2 | . . 2 . Power . | . . . . Propulsion 1 | . . 1 . Utility 1 | . . 1 . Weapon . | . . . . Parts Attached 12 | 6 2 1 3 Power 1 | 1 . . . Engine 1 | 1 . . . Core . | . . . . Reactor . | . . . . Propulsion 5 | 2 2 1 . Treads . | . . . . Leg . | . . . . Wheel 2 | 2 . . . Hover . | . . . . Flight 3 | . 2 1 . Utility 1 | 1 . . . Device . | . . . . Storage 1 | 1 . . . Processor . | . . . . Hackware . | . . . . Protection . | . . . . Artifact . | . . . . Weapon 5 | 2 . . 3 Energy Gun . | . . . . Energy Cannon . | . . . . Ballistic Gun 2 | 2 . . . Ballistic Cannon . | . . . . Launcher 2 | . . . 2 Special Weapon . | . . . . Impact Weapon 1 | . . . 1 Slashing Weapon . | . . . . Piercing Weapon . | . . . . Special Melee Weapon . | . . . . Unidentified Prototypes . | . . . . Parts Lost 5 | . . . 5 Power 1 | . . . 1 Propulsion 3 | . . . 3 Utility . | . . . . Weapon 1 | . . . 1 Highest Loss Streak 5 | . . . 5 To Critical Strikes . | . . . . Average Slot Usage (%) 49 | . 64 44 35 Engine 10 | . 14 11 7 Wheel 6 | . 14 . . Flight 20 | . 13 33 26 Storage 3 | . 7 . . Ballistic Gun 6 | . 14 . . Naked Turns 11 | . . . 11 Heaviest Build 14 | 14 14 5 5 Greatest Support 32 | 32 32 12 12 Greatest Overweight (x) 3 | . 3 . . Average Overweight (x) . | . . . . Largest Inventory Capacity 8 | 8 8 5 5 Average Capacity 5 | 7 6 5 5 Most Carried 5 | . 5 4 5 Average Carried 3 | . 2 4 4 Final Capacity 8 | 8 5 5 5 Final Carried 5 | . 5 4 5 Class Distribution -------------------- 100% | Mutant Dominant Class ---------------- Mutant | -10/Materials Mutant | -9/Materials Mutant | -9/Mines Resources | -11 -10 -9 -9 ----------- Run | Scr Mat Mat Min Matter Collected 404 | 239 87 . 78 Remotely . | . . . . Salvage Created 123 | . 103 . 20 Parts 8 | . 8 . . Haulers Intercepted . | . . . . Recyclers Shooed . | . . . . Parts Field Recycled . | . . . . Retrieved Matter . | . . . . Parts Self-Destructed . | . . . . Prevented . | . . . . Kills | -11 -10 -9 -9 ------- Run | Scr Mat Mat Min Combat Hostiles Destroyed 12 | . 4 . 8 Guns 4 | . 4 . . AOE 8 | . . . 8 Classes Destroyed 3 | . 2 . 1 Swarmer 2 | . 2 . . Grunt 2 | . 2 . . Assembled 8 | . . . 8 Best Kill Streak 8 | . 4 . 8 Combat Bots Only 8 | . 4 . 8 Max Kills in Single Turn 3 | . 1 . 3 Gunslinging . | . . . . Exploded 3 | . . . 3 Melee . | . . . . Uniques/NPCs Destroyed . | . . . . Combat | -11 -10 -9 -9 -------- Run | Scr Mat Mat Min Damage Taken 924 | . 297 32 595 Core 478 | . 71 32 375 Absorbed by Shields . | . . . . Core Remaining (%) 85 | 100 71 . . Volleys Fired 22 | . 14 . 8 Largest 2 | . 2 . 1 Hottest 40 | . 40 . 33 Shots Fired 36 | . 28 . 8 Gun 28 | . 28 . . Cannon . | . . . . Launcher 8 | . . . 8 Special . | . . . . Kinetic 28 | . 28 . . Thermal . | . . . . Explosive 8 | . . . 8 Electromagnetic . | . . . . Robot Hit Streak 3 | . 3 . 1 Robot Miss Streak 4 | . 2 . 4 Penetration Max . | . . . . Secondary Targets 2 | . 2 . . Max Gunslinging Chain 1 | . 1 . . Shots Hit Robots 18 | . 17 . 1 Core Hits 26 | . 7 . 19 Critical Kills . | . . . . Critical Parts Destroyed . | . . . . Critical Strikes . | . . . . Melee Attacks . | . . . . Impact . | . . . . Slashing . | . . . . Piercing . | . . . . Sneak Attacks . | . . . . Combat Hostiles . | . . . . Follow-up Attacks . | . . . . Damage Inflicted 703 | . 216 . 487 Guns 216 | . 216 . . Cannons . | . . . . Explosions 487 | . . . 487 Melee . | . . . . Ramming . | . . . . Kinetic 216 | . 216 . . Thermal . | . . . . Explosive 487 | . . . 487 Electromagnetic . | . . . . Impact . | . . . . Slashing . | . . . . Piercing . | . . . . Highest Corruption 4 | . 4 . . Average Corruption 3 | . 3 . . Corruption Purged . | . . . . Corruption Blocked . | . . . . Effects 2 | . 2 . . Message Errors 1 | . 1 . . Heat Flow Errors 1 | . 1 . . Overload Shots . | . . . . Overflow Damage 18 | . . . 18 Projectiles . | . . . . Explosions 18 | . . . 18 Melee . | . . . . Knockbacks . | . . . . Impact . | . . . . Kinetic . | . . . . Secondary . | . . . . Self-Inflicted Damage 23 | . . . 23 Shots 1 | . . . 1 Rammed . | . . . . Targets Rammed . | . . . . Kicked . | . . . . Crushed . | . . . . Highest Temperature 217 | . 217 . 15 Average Temperature 85 | . 93 . 12 Received Heat Transfer 139 | . 90 9 40 Siege Activations . | . . . . Robots Corrupted . | . . . . Combat Hostiles . | . . . . Parts Fried . | . . . . Impact Corruptions . | . . . . Robots Melted . | . . . . Combat Hostiles . | . . . . Parts Melted . | . . . . Heat Transferred . | . . . . Parts Sabotaged . | . . . . Parts Stolen . | . . . . Parts Stripped . | . . . . Power Chain Reactions . | . . . . Missiles Intercepted . | . . . . Alert | -11 -10 -9 -9 ------- Run | Scr Mat Mat Min Peak Influence 229 | . 180 106 229 Initial 76 | . . 76 40 Average 81 | . 86 90 96 Maximum Alert Level 1 | . . . 1 Low Security (%) 90 | 100 100 100 78 Level 1 9 | . . . 21 Level 2 . | . . . . Level 3 . | . . . . Level 4 . | . . . . Level 5 . | . . . . High Security . | . . . . Max Security . | . . . . Squads Dispatched 1 | . 1 . . Investigation . | . . . . Extermination . | . . . . Reinforcement 1 | . 1 . . Assault . | . . . . Garrison . | . . . . Intercept . | . . . . Searches Triggered . | . . . . Construction Impeded . | . . . . Haulers Reinforced . | . . . . Active Scanning Responses . | . . . . Cargo Convoy Interrupts . | . . . . Stealth | -11 -10 -9 -9 --------- Run | Scr Mat Mat Min Distress Signals 2 | . 2 . . Communications Jammed . | . . . . Distress Signals . | . . . . Times Spotted 41 | . 13 1 27 Peak Tracking Total 19 | . 6 1 19 Tactical Retreats 8 | . 3 . 5 Traps | -11 -10 -9 -9 ------- Run | Scr Mat Mat Min Traps Triggered 3 | . 3 . . Indirectly . | . . . . Trap Hack Attempts . | . . . . Triggered . | . . . . Disarmed . | . . . . Reprogrammed . | . . . . Reused . | . . . . Traps Extracted . | . . . . Installed . | . . . . Triggered . | . . . . Machines | -11 -10 -9 -9 ---------- Run | Scr Mat Mat Min Machines Disabled 1 | . . . 1 Max in Single Turn 1 | . . . 1 Machines Sabotaged . | . . . . Garrisons Compromised . | . . . . Overloaded Fab Kills . | . . . . Hacking | -11 -10 -9 -9 --------- Run | Scr Mat Mat Min Machines Accessed 2 | . 2 . . Terminals 2 | . 2 . . Fabricators . | . . . . Repair Stations . | . . . . Recycling Units . | . . . . Scanalyzers . | . . . . Garrison Access . | . . . . Total Hacks 3 | . 3 . . Successful . | . . . . Failed 3 | . 3 . . Catastrophic . | . . . . Database Lockouts . | . . . . Manual 1 | . 1 . . Terminals 3 | . 3 . . Fabricators . | . . . . Repair Stations . | . . . . Recycling Units . | . . . . Scanalyzers . | . . . . Garrison Access . | . . . . Terminal Hacks . | . . . . Fabricator Hacks . | . . . . Repair Station Hacks . | . . . . Recycling Unit Hacks . | . . . . Scanalyzer . | . . . . Garrison Access Hacks . | . . . . Unauthorized Hacks . | . . . . Terminals . | . . . . Fabricators . | . . . . Repair Stations . | . . . . Recycling Units . | . . . . Scanalyzers . | . . . . Garrison Access . | . . . . Data Cores Recovered . | . . . . Used . | . . . . Hacking Detections 1 | . 1 . . Full Trace Events . | . . . . Feedback Events . | . . . . Feedback Blocked . | . . . . Robot Schematics Acquired . | . . . . Robots Built . | . . . . Authchips . | . . . . Time . | . . . . Total Robot Build Rating . | . . . . Part Schematics Acquired . | . . . . Parts Built . | . . . . Authchips . | . . . . Time . | . . . . Total Part Build Rating . | . . . . Parts Repaired . | . . . . Time . | . . . . Parts Recycled . | . . . . Recycled Matter . | . . . . Retrieved Matter . | . . . . Retrieved Components . | . . . . Parts Scanalyzed . | . . . . Part Schematics Acquired . | . . . . Parts Damaged . | . . . . Bothacking | -11 -10 -9 -9 ------------ Run | Scr Mat Mat Min Used RIF Installer . | . . . . Robots Hacked . | . . . . Non-combat . | . . . . Combat . | . . . . Robot Hacks Applied . | . . . . Relay Couplers Released . | . . . . Fabnet Peak Effective % . | . . . . Robots Rewired . | . . . . Allies Hacked . | . . . . Hacks Repelled . | . . . . Allies | -11 -10 -9 -9 -------- Run | Scr Mat Mat Min Total Allies . | . . . . Largest Group . | . . . . Highest-Rated Group . | . . . . Highest-Rated Ally . | . . . . Total Orders . | . . . . Ally Attacks . | . . . . Total Damage . | . . . . Kills . | . . . . Allies Corrupted . | . . . . Allies Melted . | . . . . Intel | -11 -10 -9 -9 ------- Run | Scr Mat Mat Min Robot Analysis Total . | . . . . Derelict Logs Recovered 2 | . . . 2 Drone Launches . | . . . . Drone Recoveries . | . . . . Exploration | -11 -10 -9 -9 ------------- Run | Scr Mat Mat Min Turns Passed 423 | 45 165 19 194 Spaces Moved 788 | 38 229 53 468 Core 63 | 3 . . 60 Treads . | . . . . Legs . | . . . . Wheels 78 | 35 43 . . Hover . | . . . . Flight 647 | . 186 53 408 Fastest Speed 34 | 50 37 34 34 Average Speed 42 | 96 49 34 36 Slowest Speed 280 | 100 280 34 50 Overloaded Moves . | . . . . Propulsion Burnouts . | . . . . Robots Hopped 8 | . 3 . 5 Cave-ins Triggered . | . . . . Exploration Rate (%) 33 | 3 54 10 67 Regions Visited 3 Branch Regions 1 Pre-discovered Areas . | . . . . Known Exits Taken . | . . . . Unknown Exits Taken 3 | 1 1 1 . Scrap Searched 1 | . . . 1 Spaces Dug . | . . . . Terrain Destroyed 77 | . . . 77 Melee . | . . . . Projectile . | . . . . AOE 77 | . . . 77 Terrain Rammed . | . . . . Walls Destroyed . | . . . . Machines Disabled . | . . . . Actions | -11 -10 -9 -9 --------- Run | Scr Mat Mat Min Total 826 | 43 251 53 479 Wait 3 | . 1 . 2 Move 770 | 37 223 52 458 Hop 7 | . 2 . 5 Pick Up 5 | . 3 . 2 Fast Attach 9 | 6 2 . 1 Attach 3 | . . 1 2 Detach 4 | . 3 . 1 Swap . | . . . . Drop 3 | . 3 . . Fire 22 | . 14 . 8 Melee . | . . . . Ram . | . . . . Kick . | . . . . Crush . | . . . . Escape Stasis . | . . . . Rewire . | . . . . Trap . | . . . . Miscellaneous . | . . . . Route ------- -11/Scrapyard -10/Materials (discovered 2 exits: [*Mat x2]) -9/Materials -9/Mines (discovered 1 exit: [*Mat]) History --------- Turn | Location | Event 12 | -11/Scrapyard | Discovered new exit (range 15) 46 | -11/Scrapyard | Entered Materials 157 | -10/Materials | Discovered new exit (range 15) 198 | -10/Materials | Discovered new exit (range 15) 211 | -10/Materials | Entered another Materials area 211 | -9/Materials | Evolved 2 slots: Propulsion x1, Utility x1 225 | -9/Materials | Discovered new exit (range 15) 230 | -9/Materials | Entered Mines 251 | -9/Mines | Received a Rocket Launcher from a helpful Derelict 265 | -9/Mines | Learned Materials terminal intel 291 | -9/Mines | Learned Materials non-interactive machine intel 308 | -9/Mines | Build established: Mutant 309 | -9/Mines | Discovered new exit (range 8) 332 | -9/Mines | Assembled infested the area 394 | -9/Mines | Core integrity fell below 50% 398 | -9/Mines | Destroyed 8 combat bots 398 | -9/Mines | Core integrity fell below 20% 424 | -9/Mines | Lost 5 parts (1p3n1w) 424 | -9/Mines | Destroyed by as-48754 with Assembled Rifle Last Messages --------------- 00363_ The unstable cave ceiling collapses. 00364_ Flight Unit destroyed. 00364_ as-14844 destroyed. 00364_ Destroyed Asb. Hover Unit. 00364_ as-70433 destroyed. 00368_ Ion Engine destroyed. 00371_ as-06330 sneak attacks. 00371_ U-05 Engineer system corrupted by crushing effect. 00373_ U-05 Engineer destroyed. 00375_ as-06330 destroyed. 00375_ Destroyed Asb. Hover Unit. 00377_ as-30635 destroyed. 00383_ Rocket Launcher destroyed. 00388_ The unstable cave ceiling collapses. 00389_ Acquired 23 matter. 00390_ Acquired Structural Scanner. 00391_ Flight Unit destroyed. 00393_ Acquired 5 matter. 00404_ Acquired Mace. 00411_ Acquired 25 matter. Map ----- +----------------------------------------------------+ | ?????# #####??????# #????????? | | ?????# #??????# ####### #????????? | | ?????##### #??????# #?????# #????????? | | ?????????# #??????# #?????# #????????? | | ?????????# #??????# #?????# ######???? | | ?????????# ######## ##????# #???? | | ?????????# #????###### #???? | | ?????????########### #?????????# #???? | | ???????????????????# #?????????# ##??? | | ???????????????????# ##???????## ##?? | | ???????????????##### ## ##???# #?? | | ???????????????# #??## #?? | | ???????????????# ##### ### #?? | | ???????????????# #???# #?? | | ???????????????# #????# ##?? | | ???????????????# #????# #??? | | ???????????????# #????# #### ###? | | ???????????????#%#???# ##??# #? | | ???????????????#%#???# ##???# #? | | ???????????????#=#???## #?????### #? | | ???????????????# #????###????????# ## | | ?????" ????????# #??????????####?# ## | | ?????" """ ##### ##????????## ### | | ?????" """ #???????## ###### | | ?? ## ### #??????## ##??# | | ?# """ ?????#@### ######## #### | | ????????????# ## = ! | | ????????????# ## ! """= | | ????????????# ## ##%*""" ########## | | ??????????###a## ##! """ ##????????? | | ?????????## #?????????? | | ?????????# ## #?????????? | | ?????????# ###### ##?????????? | | ????????## #????## ###??????????? | | ???????## =%#?????# ##????????????? | | ????#### #?????# #?????????????? | | ???# " #???? #?????????????? | | ??# ##???######?????????????? | | ??# ####???????????????????????? | | ??# ##??????????????????????????? | | ??# #????????????????????????????? | | ??## ##?????????????????????????????? | | ???###???????????????????????????????? | | ?????????????????????????????????????? | | ?????????????????????????????????????? | | ?????????????????????????????????????? | | ?????????????????????????????????????? | | ?????????????????????????????????????? | | ?????????????????????????????????????? | | ?????????????????????????????????????? | +----------------------------------------------------+ Best States ------------- Heat Dissipation 28 Energy Generation 10 Energy Capacity 250 Matter Stores 279 Matter Capacity 300 Sight Range 16 Terrain Scan Density 10 Evasion (%) 63 Item Schematics ----------------- None Robot Schematics ------------------ None Fabricated ------------ Nothing Alien Tech Used ----------------- None Achievements -------------- None Challenges ------------ None Game ------ Seed DimensionalThrowingSheargun Manual? 0 Play Time 00:09:53 Cumulative 253.3 hours Start 2022.04.18 @ 13:27:22 End 2022.04.18 @ 13:34:34 Sessions 1 Manual Loads 0 Difficulty Rogue Special Mode None Game No. 126 Rogue 122 Adventurer 0 Explorer 4 Win Type - Total 15 Types 4/0/2/3/1/2/3/0/0 Lore% 75 Gallery% 80 Achievement% 72 Wizard Run 0 Options --------- ASCII 0 Keyboard 0 Movement Mouse Keybinds 0 Fullscreen 1 Font 18/SmallcapsGlow Map View 76x50 Tactical HUD 1 Map Filters NONE Filters NONE Steam 1 RUN: 37f2dc95-5e19-4725-a602-d1e37fe79d4d